Cogmind - Beta 17.1 @@@ ROGUE MODE // 2026.08.31 @ 13:39:53 Player: Tuuli Result: Destroyed by YI-UF0 with YI-UF0's Doublenader Performance ------------- Evolutions (0) 0 Regions Visited (2) 400 Robots Destroyed (9) 45 Value Destroyed (154) 154 Prototype IDs (0) 0 Alien Tech Used (0) 0 Bonus (0) 0 TOTAL SCORE: 599 Bonus ------- None Cogmind --------- Core Integrity 0/250 Matter 277/300 Energy 75/100 System Corruption 4% Temperature Cool (0) Movement Walking (120) Location -10/Mines Parts ------- > --- POWER (1) -------- (None) > --- PROPULSION (2) --- Light Treads Aluminum Leg > --- UTILITY (2) ------ Small Storage Unit > --- WEAPON (2) ------- Hammer Makeshift Sword > --- INVENTORY (8) ---- Grenade Launcher Hammer Peak State ------------ > --- POWER ------------ Light Nuclear Core > --- PROPULSION ------- Aluminum Leg Aluminum Leg > --- UTILITY ---------- Small Storage Unit Improved Terrain Scanner > --- WEAPON ----------- Hammer Makeshift Sword > --- INVENTORY -------- Ion Engine Light Treads Light Treads Aluminum Leg Grenade Launcher Hammer Hammer Hammer [Rating: 14] Favorites ----------- Power Light Nuclear Core Engine Light Ion Engine Power Core Light Nuclear Core Propulsion Aluminum Leg Treads Light Treads Leg Aluminum Leg Utility Small Storage Unit Device Improved Terrain Scanner Storage Small Storage Unit Weapon Hammer Ballistic Gun Assault Rifle Impact Weapon Hammer Slashing Weapon Makeshift Sword Build | -11 -10 -10 ------- Run | Yrd Mat Min Slots Evolved . | . . . Power . | . . . Propulsion . | . . . Utility . | . . . Weapon . | . . . Parts Attached 17 | 7 4 6 Power 3 | 1 1 1 Engine 2 | 1 . 1 Core 1 | . 1 . Reactor . | . . . Propulsion 5 | 2 . 3 Treads 2 | . . 2 Leg 3 | 2 . 1 Wheel . | . . . Hover . | . . . Flight . | . . . Utility 2 | 2 . . Device 1 | 1 . . Storage 1 | 1 . . Processor . | . . . Hackware . | . . . Protection . | . . . Artifact . | . . . Weapon 7 | 2 3 2 Energy Gun . | . . . Energy Cannon . | . . . Ballistic Gun 3 | 2 1 . Ballistic Cannon . | . . . Launcher . | . . . Special Weapon . | . . . Impact Weapon 3 | . 2 1 Slashing Weapon 1 | . . 1 Piercing Weapon . | . . . Special Melee Weapon . | . . . Unidentified Prototypes . | . . . Parts Lost 9 | . 2 7 Power 3 | . 1 2 Propulsion 3 | . . 3 Utility 1 | . . 1 Weapon 2 | . 1 1 Highest Loss Streak 7 | . 2 7 To Critical Strikes . | . . . Average Backups 6 | 3 5 6 Power . | . 1 . Propulsion 2 | 2 2 2 Utility . | . . . Weapon 2 | . 2 3 Tool/Special . | . . . Unused Backups 3 | . 1 2 Power . | . . . Propulsion . | . . . Utility . | . . . Weapon 3 | . 1 2 Tool/Special . | . . . Average Slot Usage (%) 98 | . 98 98 Engine 1 | . 4 . Core 11 | . 9 13 Treads 1 | . . 1 Leg 26 | . 28 26 Device 13 | . 14 12 Storage 14 | . 14 14 Ballistic Gun 4 | . 12 . Impact Weapon 16 | . 15 16 Slashing Weapon 6 | . . 11 Peak Build Rating 14 | 9 11 14 Average Rating 11 | 5 10 13 On Entrance 6 | . 9 11 Avg Prop Armor Cover (%) . | . . . Naked Turns . | . . . Heaviest Build 15 | 13 15 15 Greatest Support 40 | 20 20 40 Greatest Overweight (x) 2 | 2 . . Average Overweight (x) . | . . . Largest Inventory Capacity 8 | 8 8 8 Average Capacity 7 | 7 8 8 Most Carried 8 | 5 7 8 Average Carried 6 | 3 5 6 Final Capacity 8 | 8 8 8 Final Carried 7 | 4 7 2 Class Distribution -------------------- 100% | Mutant Dominant Class ---------------- Mutant | -10/Materials Mutant | -10/Mines Resources | -11 -10 -10 ----------- Run | Yrd Mat Min Matter Collected 491 | 279 148 64 Remotely . | . . . Salvage Created 281 | 84 148 49 Parts 15 | 4 11 . Haulers Intercepted . | . . . Recyclers Shooed 2 | . 2 . Parts Field Recycled . | . . . Retrieved Matter . | . . . Parts Self-Destructed . | . . . Prevented . | . . . Parts Restored . | . . . Kills | -11 -10 -10 ------- Run | Yrd Mat Min Combat Hostiles Destroyed 11 | . 7 4 Melee 5 | . 1 4 Guns 5 | . 5 . Classes Destroyed 5 | 2 2 1 Tunneler 1 | 1 . . Recycler 1 | 1 . . Swarmer 5 | . 5 . Grunt 2 | . 2 . Assembled 4 | . . 4 Best Kill Streak 3 | 1 3 3 Combat Bots Only 3 | . 3 3 Max Kills in Single Turn 1 | 1 1 1 Gunslinging . | . . . Exploded . | . . . Melee 1 | . 1 1 Uniques/NPCs Destroyed . | . . . Combat | -11 -10 -10 -------- Run | Yrd Mat Min Hostile Shots Fired 108 | . 66 42 Missed 26 | . 14 12 Hits 82 | . 52 30 Melee 3 | . . 3 Projectile 79 | . 52 27 AOE 13 | . . 13 Damage Taken 1250 | . 489 761 Core 272 | . 91 181 Absorbed by Shields . | . . . Core Remaining (%) 100 | 100 . . Volleys Fired 28 | 7 21 . Largest 2 | 2 2 . Hottest 40 | 40 40 . Shots Fired 53 | 13 40 . Gun 53 | 13 40 . Cannon . | . . . Launcher . | . . . Special . | . . . Kinetic 53 | 13 40 . Thermal . | . . . Explosive . | . . . Electromagnetic . | . . . Robot Hit Streak 9 | 5 9 . Robot Miss Streak 2 | 2 2 . Penetration Max . | . . . Secondary Targets 1 | . 1 . Max Gunslinging Chain 1 | . 1 . Shots Hit Robots 46 | 9 30 7 Core Hits 15 | 3 8 4 Critical Kills . | . . . Critical Parts Destroyed 1 | . 1 . Critical Strikes 1 | . 1 . Smash 1 | . 1 . Melee Attacks 17 | . 5 12 Impact 5 | . 5 . Slashing 12 | . . 12 Piercing . | . . . Sneak Attacks 1 | . 1 . Combat Hostiles . | . . . Follow-up Attacks . | . . . Damage Inflicted 866 | 113 459 294 Guns 451 | 113 338 . Cannons . | . . . Explosions . | . . . Melee 415 | . 121 294 Ramming . | . . . Kinetic 451 | 113 338 . Thermal . | . . . Explosive . | . . . Electromagnetic . | . . . Impact 121 | . 121 . Slashing 294 | . . 294 Piercing . | . . . Highest Corruption 4 | . . 4 Average Corruption 4 | . . 4 Corruption Purged . | . . . Corruption Blocked . | . . . Effects 2 | . . 2 Matter Fused 2 | . . 2 Overload Shots . | . . . Overflow Damage 51 | . 46 5 Projectiles . | . . . Explosions . | . . . Melee 51 | . 46 5 Knockbacks 1 | . 1 . Impact 1 | . 1 . Kinetic . | . . . Secondary . | . . . Self-Inflicted Damage . | . . . Shots . | . . . Rammed . | . . . Targets Rammed . | . . . Kicked . | . . . Crushed . | . . . Highest Temperature 4 | . 2 4 Average Temperature 2 | . 2 4 Received Heat Transfer 149 | . 129 20 Siege Activations . | . . . Martial Activations . | . . . Shielding Activations . | . . . Robots Disrupted . | . . . Combat Hostiles . | . . . Robots Corrupted 1 | . 1 . Combat Hostiles 1 | . 1 . Parts Fried 1 | . 1 . Impact Corruptions 2 | . 2 . Robots Melted . | . . . Combat Hostiles . | . . . Parts Melted . | . . . Heat Transferred . | . . . Parts Sabotaged . | . . . Parts Stolen . | . . . Parts Stripped . | . . . Power Chain Reactions . | . . . Alert | -11 -10 -10 ------- Run | Yrd Mat Min Maximum Alert Level . | . . . Low Security (%) 100 | 100 100 100 Level 1 . | . . . Level 2 . | . . . Level 3 . | . . . Level 4 . | . . . Level 5 . | . . . High Security . | . . . Max Security . | . . . Peak Influence 86 | 5 86 19 Initial 19 | . . 19 Average 16 | 1 45 1 Influence Increases 211 | 10 201 . Destroy 0b10 Robot/C 140 | . 140 . Destroy 0b10 Robot/NC 10 | 10 . . Destroy Leader 30 | . 30 . Disable Machine 15 | . 15 . Destroy Structure 1 | . 1 . Lose Combat Pursuer 15 | . 15 . Influence Decreases 211 | 10 150 51 Entered New Map 32 | . . 32 Time Decay 159 | 10 130 19 Lost Part 20 | . 20 . Squads Dispatched . | . . . Investigation . | . . . Extermination . | . . . Reinforcement . | . . . Assault . | . . . Garrison . | . . . Intercept . | . . . Searches Triggered . | . . . Construction Impeded . | . . . Haulers Reinforced . | . . . Active Scanning Responses . | . . . Cargo Convoy Interrupts . | . . . Stealth | -11 -10 -10 --------- Run | Yrd Mat Min Distress Signals 1 | . 1 . Communications Jammed . | . . . Distress Signals . | . . . Times Spotted 19 | . 10 9 Peak Tracking Total 5 | . 5 4 Tactical Retreats 1 | . 1 . Traps | -11 -10 -10 ------- Run | Yrd Mat Min Traps Triggered . | . . . Indirectly . | . . . Trap Hack Attempts . | . . . Triggered . | . . . Disarmed . | . . . Reprogrammed . | . . . Reused . | . . . Traps Extracted . | . . . Installed . | . . . Triggered . | . . . Machines | -11 -10 -10 ---------- Run | Yrd Mat Min Machines Disabled 1 | . 1 . Max in Single Turn 1 | . 1 . Machines Repaired . | . . . Machines Dismantled . | . . . Machines Sabotaged . | . . . Overloaded Fab Kills . | . . . Hacking | -11 -10 -10 --------- Run | Yrd Mat Min Machines Accessed . | . . . Terminals . | . . . Fabricators . | . . . Repair Stations . | . . . Recycling Units . | . . . Scanalyzers . | . . . Garrison Access . | . . . Total Hacks . | . . . Successful . | . . . Failed . | . . . Catastrophic . | . . . Database Lockouts . | . . . Manual . | . . . Terminals . | . . . Fabricators . | . . . Repair Stations . | . . . Recycling Units . | . . . Scanalyzers . | . . . Garrison Access . | . . . Terminal Hacks . | . . . Fabricator Hacks . | . . . Repair Station Hacks . | . . . Recycling Unit Hacks . | . . . Scanalyzer . | . . . Garrison Access Hacks . | . . . Unauthorized Hacks . | . . . Terminals . | . . . Fabricators . | . . . Repair Stations . | . . . Recycling Units . | . . . Scanalyzers . | . . . Garrison Access . | . . . Data Cores Recovered . | . . . Used . | . . . Hacking Detections . | . . . Full Trace Events . | . . . Feedback Events . | . . . Feedback Blocked . | . . . Robot Schematics Acquired . | . . . Robots Built . | . . . Authchips . | . . . Time . | . . . Total Robot Build Rating . | . . . Part Schematics Acquired . | . . . Parts Built . | . . . Authchips . | . . . Time . | . . . Total Part Build Rating . | . . . Part Studies Acquired . | . . . Parts Repaired . | . . . Time . | . . . Parts Recycled . | . . . Recycled Matter . | . . . Retrieved Matter . | . . . Retrieved Components . | . . . Parts Scanalyzed . | . . . Part Schematics Acquired . | . . . Parts Damaged . | . . . Bothacking | -11 -10 -10 ------------ Run | Yrd Mat Min Used RIF Installer . | . . . Robots Hacked . | . . . Non-combat . | . . . Combat . | . . . Robot Hacks Applied . | . . . Relay Couplers Released . | . . . Fabnet Peak Effective % . | . . . Robots Rewired . | . . . Allies Hacked . | . . . Hacks Repelled . | . . . Allies | -11 -10 -10 -------- Run | Yrd Mat Min Total Allies . | . . . Largest Group . | . . . Highest-Rated Group . | . . . Highest-Rated Ally . | . . . Total Orders . | . . . Ally Attacks . | . . . Total Damage . | . . . Kills . | . . . Allies Corrupted . | . . . Allies Melted . | . . . Intel | -11 -10 -10 ------- Run | Yrd Mat Min Active Infowar (turns) 717 | 22 298 397 Terrain 717 | 22 298 397 Robot Analysis Total . | . . . Derelict Logs Recovered 1 | . . 1 Drone Launches . | . . . Drone Recoveries . | . . . Exploration | -11 -10 -10 ------------- Run | Yrd Mat Min Turns Passed 854 | 113 298 443 Spaces Moved 566 | 63 172 331 Core 10 | 10 . . Treads 6 | . . 6 Legs 550 | 53 172 325 Wheels . | . . . Hover . | . . . Flight . | . . . Fastest Speed 50 | 50 120 120 Average Speed 120 | 116 120 120 Slowest Speed 160 | 150 120 160 Overloaded Moves . | . . . Propulsion Burnouts . | . . . Robots Hopped . | . . . Potential Cave-ins . | . . . Cave-ins Triggered . | . . . Exploration Rate (%) 32 | 5 36 57 Regions Visited 2 Branch Regions 1 Pre-discovered Areas 1 | . . 1 Known Exits Taken . | . . . Unknown Exits Taken 2 | 1 1 . Scrap Searched 1 | . . 1 Spaces Dug . | . . . Terrain Destroyed . | . . . Melee . | . . . Projectile . | . . . AOE . | . . . Terrain Rammed . | . . . Walls Destroyed . | . . . Machines Disabled . | . . . Actions | -11 -10 -10 --------- Run | Yrd Mat Min Total 666 | 89 215 362 Wait 16 | 2 3 11 Move 564 | 62 171 331 Hop . | . . . Pick Up 20 | 11 8 1 Fast Attach . | . . . Attach 14 | 7 2 5 Detach . | . . . Swap 3 | . 2 1 Drop 4 | . 3 1 Fire 28 | 7 21 . Melee 17 | . 5 12 Ram . | . . . Kick . | . . . Crush . | . . . Escape Stasis . | . . . Rewire . | . . . Trap . | . . . Miscellaneous . | . . . Route ------- -11/Scrapyard -10/Materials (discovered 2 exits: [*Mat] / [*Min]) -10/Mines History --------- Turn | Location | Event 14 | -11/Scrapyard | Discovered new exit (range 15) 114 | -11/Scrapyard | Entered Materials 273 | -10/Materials | Discovered new exit (range 6) 305 | -10/Materials | Build established: Mutant 324 | -10/Materials | Discovered new exit (range 3) 412 | -10/Materials | Entered Mines 438 | -10/Mines | Learned location of 1 exit from Materials 489 | -10/Mines | A weapon hastily lodged in a ceiling crevice suddenly fell to the ground 570 | -10/Mines | YI-UF0 nonchalantly dropped a Grenade Launcher on the ground 678 | -10/Mines | Learned location of Storage (-8) 689 | -10/Mines | Assembled infested the area 823 | -10/Mines | Core integrity fell below 50% 850 | -10/Mines | Core integrity fell below 20% 855 | -10/Mines | Destroyed by YI-UF0 with YI-UF0's Doublenader Last Messages --------------- 00822_ Aluminum Leg destroyed. 00822_ System corrupted by crushing effect (+1). 00822_ System corrupted by crushing effect (+3). 00824_ System corrupted: Matter fused (-6). 00824_ as-48114 destroyed. 00826_ Acquired 11 matter. 00828_ Destroyed Asb. Hover Unit. 00831_ T-07 Excavator destroyed. 00834_ as-99097 destroyed. 00836_ Acquired 11 matter. 00839_ The unstable cave ceiling collapses. 00839_ as-04686 destroyed. 00842_ YI-UF0 mumbles something. 00844_ Lgt. Nuclear Core destroyed. 00847_ Hammer destroyed. 00849_ The unstable cave ceiling collapses. 00850_ System corrupted: Matter fused (-8). 00851_ YI-UF0 mumbles something. 00851_ Lgt. Treads destroyed. 00851_ Ion Engine destroyed. Map ----- +----------------------------------------------------+ | ] #?????????????????? | | ########### ##?????#?#?????????? | | ??????????# ## #???????#??????????? | | ??##??##??## ### ##?????????????????? | | ???????????####?# ############???????? | | ?????????#??#???#% #???????? | | ????????????????#%########## #???????? | | ????????????????# #????????# #???????? | | #???????????????# #????????# #???????? | | ????????#?#?????# #?#??????# #?????#?? | | ????#??#????????# #??##??#?# ###?????? | | ??????????####??# #???##?## ###????? | | ????#????## ##?# #?????## #?????? | | ????????## ### ####?## % #####?? | | ????##???# # # ### ##? | | ????#????# ## = #? | | ??????#??# #? | | ?????????# ##### #? | | ?????#?#?# ??# # ## ## ## | | ???#?????# ??## # ### # | | ?#?#????? ??## # #? | | #???#??# ????# ## #? | | ??????? #????# # #?? | | ??????# #?????## #?? | | ??????# ??#?### g #?#?? | | ????#?# ????# @ ##????? | | ??????##?????# #?????? | | ???? ????#???# #???? | | ??????????#??## #???? | | ?????????????# #?#? | | ?????????????## # # #?? | | ??????????????### ### ##?? | | ?? ???#??????#??# #?# #??? | | ?????????????#??# #?### ##??? | | ??????? ???????## ##??## ###???? | | ??? ??????###### #???# ##?????? | | ??????????# ##??# ##??#???? | | ??????????# ##?# #??????? | | ??????????# #?### ##??????? | | ??????????## ##???? #???????? | | ???????????###### ##????? #???????? | | ???????????????## ##?????? #???????? | | ???????????????# ##?????? #???????? | | ????????#####??# #??????? ??#????? | | ???????## #?## ##??????# ???????? | | ???????# ## #??????? #??????? | | #???#??# #??#???? #??????? | | ???????## ##???????????????? | | ????????### ####????????????????? | | ??????????## ##???????????????????? | +----------------------------------------------------+ Best States ------------- Heat Dissipation 25 Energy Generation 14 Energy Capacity 250 Matter Stores 300 Matter Capacity 300 Sight Range 16 Terrain Scan Range 16 Terrain Scan Density 10 Evasion (%) 55 Recoil Reduction 2 Item Schematics ----------------- None Robot Schematics ------------------ None Fabricated ------------ Nothing Repaired ---------- Nothing Studied --------- None Alien Tech Used ----------------- None Achievements -------------- None Challenges ------------ None Game ------ Seed HackingChaosGenerator Manual? 0 Play Time 00:07:41 Cumulative 17.9 hours Start 2026.08.31 @ 13:32:06 End 2026.08.31 @ 13:39:53 Sessions 1 Manual Loads 0 Difficulty Rogue Special Mode None Game No. 36 Rogue 35 Adventurer 1 Explorer 0 Win Type - Total 0 Types 0/0/0/0/0/0/0/0/0/0 Lore% 21 Gallery% 23 Achievement% 18 Wizard Run 0 Options --------- Layout 0 ASCII 0 Keyboard 0 Movement Mouse Keybinds 0 Fullscreen 2 Font 18/SmallcapsGlow Map View 38x25 Zoom Use 98% Tactical HUD 1 Map Filters NONE Filters NONE Steam 1 RUN: fc834ab7-17e8-4e3e-b722-7bb83d8620a9